[Event "2026 European Womens Championship"]
[Site "Batumi, GE"]
[Date "2026.06.05"]
[Round "11"]
[White "Subramanian, Anusha"]
[Black "Gharibyan, Mane"]
[Result "1-0"]
[Board "64"]
[TimeControl "5400+30"]
[WhiteFideId "477710"]
[BlackFideId "13306430"]
[WhiteElo "2068"]
[BlackElo "1776"]
[WhiteTitle "WFM"]
[WhiteClock "0:07:23"]
[BlackClock "0:00:33"]
[Variant "Standard"]

1. e4 {[%clk 1:30:58]}  c5 {[%clk 1:30:29]} 2. Nf3 {[%clk 1:31:22]}  d6 {[%clk 1:30:54]} 3. d4 {[%clk 1:31:48]}  cxd4 {[%clk 1:31:15]}
4. Nxd4 {[%clk 1:32:13]}  Nf6 {[%clk 1:31:42]} 5. Nc3 {[%clk 1:32:36]}  a6 {[%clk 1:32:08]} 6. Rg1 {[%clk 1:33:03]}  e5 {[%clk 1:29:11]}
7. Nb3 {[%clk 1:33:27]}  Be6 {[%clk 1:26:08]} 8. g4 {[%clk 1:33:51]}  Be7 {[%clk 1:13:11]} 9. g5 {[%clk 1:33:11]}  Nfd7 {[%clk 1:12:21]}
10. h4 {[%clk 1:30:25]}  b5 {[%clk 1:04:53]} 11. Be3 {[%clk 1:28:52]}  Nb6 {[%clk 1:02:10]} 12. Nd5 {[%clk 1:16:08]}  N8d7 {[%clk 0:55:27]}
13. h5 {[%clk 1:02:23]}  Nxd5 {[%clk 0:41:40]} 14. exd5 {[%clk 1:02:41]}  Bf5 {[%clk 0:42:08]} 15. Bd3 {[%clk 0:49:14]}  e4 {[%clk 0:36:31]}
16. Nd4 {[%clk 0:47:31]}  g6 {[%clk 0:33:14]} 17. Be2 {[%clk 0:45:06]}  Ne5 {[%clk 0:32:33]} 18. Nxf5 {[%clk 0:35:41]}  gxf5 {[%clk 0:32:58]}
19. Qd2 {[%clk 0:34:57]}  Rg8 {[%clk 0:28:27]} 20. O-O-O {[%clk 0:33:05]}  Rc8 {[%clk 0:27:18]} 21. Kb1 {[%clk 0:32:43]}  Qc7 {[%clk 0:22:01]}
22. Bf4 {[%clk 0:24:57]}  Nc4 {[%clk 0:17:38]} 23. Bxc4 {[%clk 0:25:06]}  bxc4 {[%clk 0:15:30]} 24. Rg3 {[%clk 0:22:54]}  Rb8 {[%clk 0:10:25]}
25. Qc3 {[%clk 0:19:21]}  Bf8 {[%clk 0:08:04]} 26. h6 {[%clk 0:18:53]}  Qb6 {[%clk 0:06:24]} 27. Re3 {[%clk 0:16:45]}  Be7 {[%clk 0:05:27]}
28. f3 {[%clk 0:15:01]}  Bxg5 {[%clk 0:02:31]} 29. Bxg5 {[%clk 0:11:33]}  Rxg5 {[%clk 0:02:48]} 30. fxe4 {[%clk 0:11:10]}  f4 {[%clk 0:03:03]}
31. Rf3 {[%clk 0:10:50]}  Rg3 {[%clk 0:02:16]} 32. b3 {[%clk 0:07:03]}  Qb4 {[%clk 0:00:34]} 33. Rxg3 {[%clk 0:06:50]}  fxg3 {[%clk 0:00:58]}
34. Qxg3 {[%clk 0:06:50]}  c3 {[%clk 0:00:38]} 35. Rf1 {[%clk 0:07:02]}  Rb7 {[%clk 0:00:33]} 36. Qg8+ {[%clk 0:07:23]} 1-0

[Event "2026 European Womens Championship"]
[Site "Batumi, GE"]
[Date "2026.06.05"]
[Round "11"]
[White "Tsirulnik, Maritsa"]
[Black "Saltkhutsishvili, Sara"]
[Result "1/2-1/2"]
[Board "65"]
[TimeControl "5400+30"]
[WhiteFideId "14118688"]
[BlackFideId "13636995"]
[WhiteElo "2028"]
[BlackElo "1763"]
[WhiteTitle "WFM"]
[WhiteClock "0:20:41"]
[BlackClock "0:13:03"]
[Variant "Standard"]

1. d4 {[%clk 1:30:57]}  d5 {[%clk 1:30:58]} 2. c4 {[%clk 1:31:21]}  e6 {[%clk 1:31:15]} 3. Nf3 {[%clk 1:31:42]}  Nf6 {[%clk 1:31:43]}
4. g3 {[%clk 1:32:03]}  Be7 {[%clk 1:31:55]} 5. Bg2 {[%clk 1:32:24]}  O-O {[%clk 1:32:06]} 6. O-O {[%clk 1:32:46]}  dxc4 {[%clk 1:27:50]}
7. Qc2 {[%clk 1:32:59]}  a6 {[%clk 1:28:03]} 8. a4 {[%clk 1:29:38]}  Bd7 {[%clk 1:24:48]} 9. Qxc4 {[%clk 1:28:52]}  Bc6 {[%clk 1:24:33]}
10. Bg5 {[%clk 1:26:48]}  Bd5 {[%clk 1:11:37]} 11. Qc2 {[%clk 1:21:28]}  Be4 {[%clk 0:59:51]} 12. Qc1 {[%clk 1:21:35]}  Nc6 {[%clk 0:58:06]}
13. e3 {[%clk 1:19:42]}  Nd5 {[%clk 0:52:23]} 14. Bxe7 {[%clk 1:19:56]}  Qxe7 {[%clk 0:52:50]} 15. Nbd2 {[%clk 1:17:51]}  Bg6 {[%clk 0:43:56]}
16. Rd1 {[%clk 1:10:24]}  Ndb4 {[%clk 0:39:16]} 17. e4 {[%clk 1:09:24]}  Rfd8 {[%clk 0:35:39]} 18. Qc3 {[%clk 1:07:44]}  Rd7 {[%clk 0:33:45]}
19. Nb3 {[%clk 1:04:54]}  Bxe4 {[%clk 0:25:00]} 20. Nc5 {[%clk 1:05:11]}  Bxf3 {[%clk 0:24:52]} 21. Bxf3 {[%clk 1:05:30]}  Rxd4 {[%clk 0:24:26]}
22. Nxb7 {[%clk 1:01:27]}  Qf6 {[%clk 0:14:51]} 23. Kg2 {[%clk 0:26:59]}  e5 {[%clk 0:09:16]} 24. Rac1 {[%clk 0:24:22]}  Rb8 {[%clk 0:07:01]}
25. Bxc6 {[%clk 0:19:33]}  Rxd1 {[%clk 0:05:23]} 26. Rxd1 {[%clk 0:18:21]}  Qxc6+ {[%clk 0:05:41]} 27. Qxc6 {[%clk 0:18:47]}  Nxc6 {[%clk 0:06:10]}
28. Nc5 {[%clk 0:12:48]}  Rxb2 {[%clk 0:04:57]} 29. Nxa6 {[%clk 0:09:52]}  h6 {[%clk 0:04:12]} 30. Rc1 {[%clk 0:06:22]}  Nb4 {[%clk 0:03:44]}
31. Nxb4 {[%clk 0:06:29]}  Rxb4 {[%clk 0:04:07]} 32. Ra1 {[%clk 0:06:11]}  Rb6 {[%clk 0:03:11]} 33. a5 {[%clk 0:05:34]}  Ra6 {[%clk 0:03:00]}
34. Kf3 {[%clk 0:03:48]}  f6 {[%clk 0:02:32]} 35. Ke4 {[%clk 0:02:19]}  c6 {[%clk 0:02:40]} 36. f4 {[%clk 0:02:19]}  exf4 {[%clk 0:01:41]}
37. gxf4 {[%clk 0:01:41]}  Kf7 {[%clk 0:00:45]} 38. f5 {[%clk 0:00:39]}  g6 {[%clk 0:00:40]} 39. fxg6+ {[%clk 0:00:41]}  Kxg6 {[%clk 0:01:08]}
40. Kf4 {[%clk 0:00:41]}  Kg7 {[%clk 0:00:44]} 41. Kf5 {[%clk 0:28:23]}  Kf7 {[%clk 0:24:11]} 42. h4 {[%clk 0:25:58]}  h5 {[%clk 0:22:02]}
43. Ra2 {[%clk 0:26:08]}  c5 {[%clk 0:17:17]} 44. Ra1 {[%clk 0:26:21]}  c4 {[%clk 0:12:36]} 45. Ke4 {[%clk 0:26:37]}  Kg6 {[%clk 0:12:43]}
46. Rg1+ {[%clk 0:19:58]}  Kf7 {[%clk 0:12:44]} 47. Ra1 {[%clk 0:20:23]}  Kg6 {[%clk 0:13:03]} 48. Rg1+ {[%clk 0:20:41]} 1/2-1/2

[Event "2026 European Womens Championship"]
[Site "Batumi, GE"]
[Date "2026.06.05"]
[Round "11"]
[White "Hariharan, Shambavi"]
[Black "Kalayci, Nino"]
[Result "1/2-1/2"]
[Board "66"]
[TimeControl "5400+30"]
[WhiteFideId "488160"]
[BlackFideId "13603221"]
[WhiteElo "2008"]
[BlackElo "1755"]
[WhiteTitle "WFM"]
[BlackTitle "WCM"]
[WhiteClock "0:11:10"]
[BlackClock "0:22:24"]
[Variant "Standard"]

1. d4 {[%clk 1:30:57]}  d5 {[%clk 1:30:42]} 2. c4 {[%clk 1:31:22]}  e6 {[%clk 1:31:07]} 3. Nf3 {[%clk 1:31:46]}  Nf6 {[%clk 1:31:07]}
4. g3 {[%clk 1:32:12]}  Be7 {[%clk 1:26:43]} 5. Bg2 {[%clk 1:32:21]}  O-O {[%clk 1:26:57]} 6. O-O {[%clk 1:32:43]}  dxc4 {[%clk 1:21:21]}
7. Qc2 {[%clk 1:32:43]}  a6 {[%clk 1:19:06]} 8. a4 {[%clk 1:32:56]}  Bd7 {[%clk 1:17:58]} 9. Qxc4 {[%clk 1:32:59]}  Bc6 {[%clk 1:17:41]}
10. Bg5 {[%clk 1:32:14]}  Bd5 {[%clk 1:11:43]} 11. Qc1 {[%clk 1:31:38]}  Ne4 {[%clk 0:59:31]} 12. Bxe7 {[%clk 1:29:27]}  Qxe7 {[%clk 0:59:10]}
13. Nc3 {[%clk 1:28:06]}  Nxc3 {[%clk 0:58:53]} 14. Qxc3 {[%clk 1:27:09]}  Nc6 {[%clk 0:55:49]} 15. Rac1 {[%clk 1:21:23]}  Rac8 {[%clk 0:54:19]}
16. Rfe1 {[%clk 1:14:05]}  Be4 {[%clk 0:48:00]} 17. Qe3 {[%clk 1:07:48]}  Bd5 {[%clk 0:46:19]} 18. Rc5 {[%clk 0:55:03]}  Rfd8 {[%clk 0:41:42]}
19. Rec1 {[%clk 0:51:09]}  Qd6 {[%clk 0:41:00]} 20. Qd3 {[%clk 0:45:19]}  Bxf3 {[%clk 0:27:41]} 21. Bxf3 {[%clk 0:43:25]}  Qxd4 {[%clk 0:27:43]}
22. Bxc6 {[%clk 0:41:02]}  Qxd3 {[%clk 0:23:47]} 23. exd3 {[%clk 0:41:27]}  bxc6 {[%clk 0:24:14]} 24. Rxc6 {[%clk 0:39:25]}  Rxd3 {[%clk 0:23:19]}
25. Rxa6 {[%clk 0:39:03]}  g6 {[%clk 0:22:25]} 26. b4 {[%clk 0:38:34]}  Rb8 {[%clk 0:18:15]} 27. b5 {[%clk 0:36:38]}  Rb7 {[%clk 0:18:03]}
28. Rc4 {[%clk 0:34:05]}  Ra3 {[%clk 0:16:16]} 29. Rb4 {[%clk 0:32:45]}  Kf8 {[%clk 0:08:01]} 30. Rd4 {[%clk 0:19:51]}  Ke7 {[%clk 0:07:16]}
31. Kg2 {[%clk 0:19:31]}  Rb3 {[%clk 0:04:22]} 32. Ra8 {[%clk 0:18:58]}  e5 {[%clk 0:02:33]} 33. Rc4 {[%clk 0:18:09]}  Ra3 {[%clk 0:01:52]}
34. Rc5 {[%clk 0:16:04]}  Kd6 {[%clk 0:01:08]} 35. Rc6+ {[%clk 0:16:18]}  Kd7 {[%clk 0:00:53]} 36. Rca6 {[%clk 0:14:33]}  Rb6 {[%clk 0:00:32]}
37. Rxb6 {[%clk 0:12:57]}  cxb6 {[%clk 0:01:01]} 38. Ra7+ {[%clk 0:13:18]}  Ke6 {[%clk 0:00:48]} 39. Ra6 {[%clk 0:08:35]}  Kd5 {[%clk 0:00:59]}
40. Rxb6 {[%clk 0:08:32]}  Rxa4 {[%clk 0:01:23]} 41. Rb7 {[%clk 0:08:02]}  Ke6 {[%clk 0:00:52]} 42. b6 {[%clk 0:06:54]}  Rb4 {[%clk 0:01:06]}
43. h4 {[%clk 0:04:52]}  h5 {[%clk 0:24:26]} 44. Rb8 {[%clk 0:34:04]}  e4 {[%clk 0:12:36]} 45. Kf1 {[%clk 0:25:22]}  Rb2 {[%clk 0:09:55]}
46. Re8+ {[%clk 0:22:43]}  Kf5 {[%clk 0:09:15]} 47. Re7 {[%clk 0:22:29]}  Rxb6 {[%clk 0:09:14]} 48. Rxf7+ {[%clk 0:22:42]}  Ke5 {[%clk 0:09:25]}
49. Ke2 {[%clk 0:22:01]}  Rb2+ {[%clk 0:09:52]} 50. Ke3 {[%clk 0:22:12]}  Rb3+ {[%clk 0:10:19]} 51. Ke2 {[%clk 0:22:37]}  Rb2+ {[%clk 0:10:45]}
52. Ke3 {[%clk 0:22:24]}  Rb3+ {[%clk 0:11:10]} 53. Ke2 {[%clk 0:22:16]} 1/2-1/2

[Event "2026 European Womens Championship"]
[Site "Batumi, GE"]
[Date "2026.06.05"]
[Round "11"]
[White "Danielyan, Lilia"]
[Black "Muradyan, Anahit"]
[Result "1/2-1/2"]
[Board "67"]
[TimeControl "5400+30"]
[WhiteFideId "13319841"]
[BlackFideId "13314807"]
[WhiteElo "1728"]
[BlackElo "1977"]
[WhiteClock "0:10:41"]
[BlackClock "0:24:45"]
[Variant "Standard"]

1. c4 {[%clk 1:30:56]}  Nf6 {[%clk 1:30:55]} 2. Nc3 {[%clk 1:31:19]}  e6 {[%clk 1:31:21]} 3. e4 {[%clk 1:30:52]}  d6 {[%clk 1:30:40]}
4. d4 {[%clk 1:30:24]}  Be7 {[%clk 1:31:00]} 5. Be2 {[%clk 1:29:03]}  O-O {[%clk 1:30:50]} 6. Nf3 {[%clk 1:28:19]}  c5 {[%clk 1:30:49]}
7. d5 {[%clk 1:28:05]}  exd5 {[%clk 1:31:03]} 8. cxd5 {[%clk 1:26:54]}  a6 {[%clk 1:31:15]} 9. a4 {[%clk 1:25:37]}  Bg4 {[%clk 1:31:05]}
10. O-O {[%clk 1:19:02]}  Nbd7 {[%clk 1:30:52]} 11. Nd2 {[%clk 1:18:36]}  Bxe2 {[%clk 1:30:31]} 12. Qxe2 {[%clk 1:18:53]}  Re8 {[%clk 1:29:53]}
13. Nc4 {[%clk 1:12:02]}  b6 {[%clk 1:25:43]} 14. Bf4 {[%clk 1:10:13]}  Nf8 {[%clk 1:24:58]} 15. Bg3 {[%clk 1:09:42]}  Ng6 {[%clk 1:16:21]}
16. f4 {[%clk 1:07:29]}  h5 {[%clk 1:00:16]} 17. h3 {[%clk 1:04:54]}  h4 {[%clk 0:58:49]} 18. Bh2 {[%clk 1:05:12]}  Ra7 {[%clk 0:58:22]}
19. Qf3 {[%clk 1:01:59]}  Bf8 {[%clk 0:53:29]} 20. e5 {[%clk 0:56:47]}  dxe5 {[%clk 0:50:46]} 21. fxe5 {[%clk 0:56:56]}  Nh7 {[%clk 0:51:10]}
22. Rae1 {[%clk 0:52:52]}  Ng5 {[%clk 0:46:43]} 23. Qf5 {[%clk 0:49:59]}  Kh7 {[%clk 0:38:19]} 24. Qg4 {[%clk 0:41:29]}  Rb7 {[%clk 0:32:44]}
25. Rf5 {[%clk 0:35:29]}  b5 {[%clk 0:25:49]} 26. Ne3 {[%clk 0:29:39]}  b4 {[%clk 0:25:15]} 27. Ncd1 {[%clk 0:28:51]}  Be7 {[%clk 0:18:16]}
28. d6 {[%clk 0:28:33]}  Bxd6 {[%clk 0:12:01]} 29. exd6 {[%clk 0:28:29]}  Ne4 {[%clk 0:12:26]} 30. Qf3 {[%clk 0:23:14]}  Qd7 {[%clk 0:09:29]}
31. Nc4 {[%clk 0:17:52]}  Nxd6 {[%clk 0:05:29]} 32. Rh5+ {[%clk 0:14:41]}  Kg8 {[%clk 0:05:53]} 33. Rxe8+ {[%clk 0:14:41]}  Nxe8 {[%clk 0:06:06]}
34. Nde3 {[%clk 0:14:32]}  b3 {[%clk 0:03:03]} 35. Ne5 {[%clk 0:07:51]}  Qd4 {[%clk 0:02:17]} 36. Nxg6 {[%clk 0:06:04]}  fxg6 {[%clk 0:02:39]}
37. Re5 {[%clk 0:05:30]}  Qd7 {[%clk 0:01:40]} 38. Bf4 {[%clk 0:03:23]}  Rb4 {[%clk 0:01:15]} 39. Nd5 {[%clk 0:03:12]}  Rxa4 {[%clk 0:00:33]}
40. Ne7+ {[%clk 0:03:15]}  Kf7 {[%clk 0:00:49]} 41. Qxb3+ {[%clk 0:27:12]}  c4 {[%clk 0:31:15]} 42. Qf3 {[%clk 0:26:05]}  Nf6 {[%clk 0:31:09]}
43. Nd5 {[%clk 0:25:57]}  Ra1+ {[%clk 0:30:01]} 44. Kh2 {[%clk 0:26:09]}  Qc6 {[%clk 0:30:04]} 45. Nxf6 {[%clk 0:21:38]}  Qxf3 {[%clk 0:30:30]}
46. gxf3 {[%clk 0:21:59]}  gxf6 {[%clk 0:30:56]} 47. Re2 {[%clk 0:21:54]}  Ra2 {[%clk 0:31:16]} 48. Rd2 {[%clk 0:20:35]}  g5 {[%clk 0:31:40]}
49. Be3 {[%clk 0:20:56]}  a5 {[%clk 0:32:05]} 50. Bd4 {[%clk 0:18:47]}  a4 {[%clk 0:32:29]} 51. Bc3 {[%clk 0:18:33]}  a3 {[%clk 0:32:45]}
52. Kg2 {[%clk 0:16:49]}  axb2 {[%clk 0:33:05]} 53. Rxb2 {[%clk 0:16:55]}  Ra3 {[%clk 0:24:32]} 54. Rc2 {[%clk 0:14:58]}  f5 {[%clk 0:24:35]}
55. Bd2 {[%clk 0:14:27]}  g4 {[%clk 0:24:21]} 56. hxg4 {[%clk 0:10:02]}  fxg4 {[%clk 0:24:45]} 57. fxg4 {[%clk 0:09:15]}  Rg3+ {[%clk 0:25:10]}
58. Kh2 {[%clk 0:10:13]}  Rxg4 {[%clk 0:25:37]} 59. Kh3 {[%clk 0:10:32]}  Re4 {[%clk 0:26:02]} 60. Bg5 {[%clk 0:10:48]}  Ke6 {[%clk 0:26:24]}
61. Bxh4 {[%clk 0:10:54]}  Kd5 {[%clk 0:26:13]} 62. Bf6 {[%clk 0:10:52]}  Rf4 {[%clk 0:24:45]} 63. Bc3 {[%clk 0:10:41]} 1/2-1/2

[Event "2026 European Womens Championship"]
[Site "Batumi, GE"]
[Date "2026.06.05"]
[Round "11"]
[White "Rusitashvili, Tea"]
[Black "Vakhania, Aleksandra"]
[Result "0-1"]
[Board "68"]
[TimeControl "5400+30"]
[WhiteFideId "13640771"]
[BlackFideId "13602560"]
[WhiteElo "1929"]
[BlackElo "2079"]
[WhiteTitle "WCM"]
[BlackTitle "WIM"]
[WhiteClock "0:11:40"]
[BlackClock "0:19:27"]
[Variant "Standard"]

1. e4 {[%clk 1:30:55]}  c6 {[%clk 1:30:37]} 2. d4 {[%clk 1:31:12]}  d5 {[%clk 1:31:03]} 3. exd5 {[%clk 1:31:31]}  cxd5 {[%clk 1:31:30]}
4. Bd3 {[%clk 1:31:53]}  Nc6 {[%clk 1:31:50]} 5. c3 {[%clk 1:32:14]}  Qc7 {[%clk 1:32:01]} 6. h3 {[%clk 1:32:23]}  e6 {[%clk 1:32:12]}
7. Nf3 {[%clk 1:32:08]}  Bd6 {[%clk 1:32:35]} 8. O-O {[%clk 1:31:46]}  Nf6 {[%clk 1:30:22]} 9. Re1 {[%clk 1:30:45]}  Bd7 {[%clk 1:30:09]}
10. b3 {[%clk 1:29:12]}  O-O-O {[%clk 1:26:53]} 11. Ba3 {[%clk 1:26:20]}  Bf4 {[%clk 1:23:07]} 12. Nbd2 {[%clk 1:23:59]}  e5 {[%clk 1:19:56]}
13. dxe5 {[%clk 1:19:01]}  Nxe5 {[%clk 1:19:30]} 14. Nxe5 {[%clk 1:17:21]}  Bxe5 {[%clk 1:19:38]} 15. Rc1 {[%clk 1:17:11]}  Kb8 {[%clk 1:16:23]}
16. c4 {[%clk 1:08:58]}  Bc6 {[%clk 1:14:24]} 17. Nf3 {[%clk 1:05:25]}  Bf4 {[%clk 1:09:50]} 18. Rc2 {[%clk 1:03:54]}  Qa5 {[%clk 1:02:18]}
19. Be7 {[%clk 1:01:50]}  dxc4 {[%clk 1:01:50]} 20. Bxd8 {[%clk 0:54:32]}  Rxd8 {[%clk 1:02:02]} 21. b4 {[%clk 0:54:25]}  Qa3 {[%clk 0:57:41]}
22. Rxc4 {[%clk 0:51:19]}  Rxd3 {[%clk 0:57:33]} 23. Qc2 {[%clk 0:51:19]}  Bd6 {[%clk 0:32:22]} 24. Nd4 {[%clk 0:41:22]}  Rxd4 {[%clk 0:26:35]}
25. Rxd4 {[%clk 0:41:26]}  Bxb4 {[%clk 0:26:38]} 26. Rb1 {[%clk 0:36:14]}  Bc5 {[%clk 0:25:00]} 27. Rc4 {[%clk 0:31:17]}  Qg3 {[%clk 0:24:42]}
28. Kf1 {[%clk 0:20:50]}  Qxg2+ {[%clk 0:25:06]} 29. Ke1 {[%clk 0:19:12]}  Qg1+ {[%clk 0:25:32]} 30. Kd2 {[%clk 0:17:48]}  Qxf2+ {[%clk 0:25:56]}
31. Kc3 {[%clk 0:15:24]}  Qe3+ {[%clk 0:24:19]} 32. Kb2 {[%clk 0:13:49]}  Bd4+ {[%clk 0:21:50]} 33. Rxd4 {[%clk 0:14:12]}  Qxd4+ {[%clk 0:22:16]}
34. Kc1 {[%clk 0:14:32]}  a6 {[%clk 0:19:25]} 35. Qh2+ {[%clk 0:13:27]}  Ka8 {[%clk 0:19:40]} 36. Rb2 {[%clk 0:12:23]}  Ne4 {[%clk 0:19:42]}
37. Qe2 {[%clk 0:11:40]}  Bb5 {[%clk 0:19:27]} 0-1

[Event "2026 European Womens Championship"]
[Site "Batumi, GE"]
[Date "2026.06.05"]
[Round "11"]
[White "Ashotia, Barbare"]
[Black "Krkyasharyan, Sona"]
[Result "0-1"]
[Board "69"]
[TimeControl "5400+30"]
[WhiteFideId "13625187"]
[BlackFideId "13316729"]
[WhiteElo "1913"]
[BlackElo "2063"]
[BlackTitle "WFM"]
[WhiteClock "0:30:45"]
[BlackClock "0:58:30"]
[Variant "Standard"]

1. e4 {[%clk 1:30:55]}  c5 {[%clk 1:30:53]} 2. Nf3 {[%clk 1:31:16]}  d6 {[%clk 1:31:20]} 3. d4 {[%clk 1:31:32]}  cxd4 {[%clk 1:31:46]}
4. Nxd4 {[%clk 1:31:55]}  Nf6 {[%clk 1:32:12]} 5. Nc3 {[%clk 1:32:06]}  a6 {[%clk 1:32:38]} 6. a3 {[%clk 1:32:21]}  e5 {[%clk 1:32:53]}
7. Nf5 {[%clk 1:32:39]}  d5 {[%clk 1:33:19]} 8. Bg5 {[%clk 1:33:01]}  d4 {[%clk 1:33:43]} 9. Bxf6 {[%clk 1:33:23]}  gxf6 {[%clk 1:34:08]}
10. Na2 {[%clk 1:33:40]}  Bxf5 {[%clk 1:28:16]} 11. exf5 {[%clk 1:34:03]}  Qd5 {[%clk 1:26:19]} 12. Be2 {[%clk 1:33:46]}  Be7 {[%clk 1:24:49]}
13. O-O {[%clk 1:24:26]}  e4 {[%clk 1:11:39]} 14. Nb4 {[%clk 1:07:36]}  Qc5 {[%clk 1:00:23]} 15. Re1 {[%clk 0:51:51]}  a5 {[%clk 0:54:24]}
16. Na2 {[%clk 0:51:25]}  Nc6 {[%clk 0:52:07]} 17. b4 {[%clk 0:45:30]}  Qxf5 {[%clk 0:48:36]} 18. b5 {[%clk 0:35:44]}  Ne5 {[%clk 0:48:42]}
19. b6 {[%clk 0:32:10]}  O-O {[%clk 0:45:53]} 20. h3 {[%clk 0:25:23]}  Bc5 {[%clk 0:40:29]} 21. Bg4 {[%clk 0:20:21]}  Nxg4 {[%clk 0:40:15]}
22. hxg4 {[%clk 0:20:16]}  Qe5 {[%clk 0:38:35]} 23. Qe2 {[%clk 0:19:20]}  Rfe8 {[%clk 0:38:36]} 24. Rab1 {[%clk 0:19:34]}  Bd6 {[%clk 0:34:32]}
25. g3 {[%clk 0:19:35]}  e3 {[%clk 0:34:45]} 26. f4 {[%clk 0:19:42]}  Qe4 {[%clk 0:33:44]} 27. Nc1 {[%clk 0:19:26]}  Rac8 {[%clk 0:33:40]}
28. Nd3 {[%clk 0:18:38]}  Rc3 {[%clk 0:33:42]} 29. a4 {[%clk 0:11:10]}  Rec8 {[%clk 0:33:34]} 30. Rb2 {[%clk 0:11:27]}  Qc6 {[%clk 0:33:23]}
31. g5 {[%clk 0:10:25]}  Rxc2 {[%clk 0:26:32]} 32. Rxc2 {[%clk 0:10:50]}  Qxc2 {[%clk 0:26:58]} 33. Qg4 {[%clk 0:10:53]}  f5 {[%clk 0:27:18]}
34. Qxf5 {[%clk 0:09:19]}  Rc3 {[%clk 0:27:34]} 35. Qf6 {[%clk 0:03:43]}  Rxd3 {[%clk 0:27:41]} 36. Qxd6 {[%clk 0:01:47]}  Qf2+ {[%clk 0:28:04]}
37. Kh1 {[%clk 0:02:14]}  Qxe1+ {[%clk 0:28:27]} 38. Kg2 {[%clk 0:02:24]}  Qb4 {[%clk 0:28:02]} 39. Qe5 {[%clk 0:01:31]}  Rd2+ {[%clk 0:27:34]}
40. Kh3 {[%clk 0:01:47]}  e2 {[%clk 0:27:25]} 41. Qe8+ {[%clk 0:29:25]}  Qf8 {[%clk 0:57:43]} 42. Qe4 {[%clk 0:29:40]}  d3 {[%clk 0:57:35]}
43. f5 {[%clk 0:30:05]}  Rd1 {[%clk 0:57:41]} 44. g6 {[%clk 0:30:28]}  hxg6 {[%clk 0:58:03]} 45. fxg6 {[%clk 0:30:45]}  Qh6+ {[%clk 0:58:30]} 0-1

[Event "2026 European Womens Championship"]
[Site "Batumi, GE"]
[Date "2026.06.05"]
[Round "11"]
[White "Akat, Elifnaz"]
[Black "Khairova, Evelina"]
[Result "1-0"]
[Board "70"]
[TimeControl "5400+30"]
[WhiteFideId "34560556"]
[BlackFideId "2845768"]
[WhiteElo "2061"]
[BlackElo "1880"]
[WhiteTitle "WFM"]
[WhiteClock "0:16:00"]
[BlackClock "0:14:10"]
[Variant "Standard"]

1. e4 {[%clk 1:30:59]}  c5 {[%clk 1:30:52]} 2. Nf3 {[%clk 1:31:23]}  Nc6 {[%clk 1:31:18]} 3. Bb5 {[%clk 1:31:48]}  g6 {[%clk 1:31:43]}
4. O-O {[%clk 1:32:13]}  Bg7 {[%clk 1:32:11]} 5. c3 {[%clk 1:32:42]}  a6 {[%clk 1:32:10]} 6. Bxc6 {[%clk 1:30:36]}  dxc6 {[%clk 1:32:35]}
7. d3 {[%clk 1:30:46]}  Nf6 {[%clk 1:31:05]} 8. h3 {[%clk 1:29:34]}  O-O {[%clk 1:27:44]} 9. Qe2 {[%clk 1:27:09]}  a5 {[%clk 1:27:16]}
10. Rd1 {[%clk 1:23:44]}  a4 {[%clk 1:16:57]} 11. Be3 {[%clk 1:18:44]}  Nd7 {[%clk 1:08:38]} 12. d4 {[%clk 1:08:36]}  Qc7 {[%clk 1:05:24]}
13. dxc5 {[%clk 1:06:59]}  e5 {[%clk 1:05:33]} 14. Na3 {[%clk 0:59:02]}  f5 {[%clk 1:02:21]} 15. Qc4+ {[%clk 0:58:46]}  Kh8 {[%clk 1:00:26]}
16. exf5 {[%clk 0:56:40]}  gxf5 {[%clk 0:57:45]} 17. Ng5 {[%clk 0:48:33]}  Nf6 {[%clk 0:55:47]} 18. f4 {[%clk 0:38:41]}  h6 {[%clk 0:47:47]}
19. Nf3 {[%clk 0:31:59]}  Nd5 {[%clk 0:43:51]} 20. Rxd5 {[%clk 0:30:24]}  Be6 {[%clk 0:32:43]} 21. Nxe5 {[%clk 0:25:41]}  Bxe5 {[%clk 0:32:44]}
22. Rxe5 {[%clk 0:17:54]}  Bxc4 {[%clk 0:30:58]} 23. Bd4 {[%clk 0:16:16]}  Kh7 {[%clk 0:29:21]} 24. Nxc4 {[%clk 0:16:05]}  Rae8 {[%clk 0:22:25]}
25. Rae1 {[%clk 0:16:33]}  Rxe5 {[%clk 0:18:52]} 26. Rxe5 {[%clk 0:16:41]}  Qf7 {[%clk 0:17:27]} 27. Nd6 {[%clk 0:16:43]}  Qxa2 {[%clk 0:16:34]}
28. Re7+ {[%clk 0:16:51]}  Kg6 {[%clk 0:16:48]} 29. Rg7+ {[%clk 0:15:40]}  Kh5 {[%clk 0:17:12]} 30. Bf2 {[%clk 0:15:25]}  Qe6 {[%clk 0:15:19]}
31. Ne4 {[%clk 0:15:36]}  Rg8 {[%clk 0:14:10]} 32. Ng3+ {[%clk 0:16:00]} 1-0

[Event "2026 European Womens Championship"]
[Site "Batumi, GE"]
[Date "2026.06.05"]
[Round "11"]
[White "Recica, Jona"]
[Black "Hayrapetyan, Nvard"]
[Result "0-1"]
[Board "71"]
[TimeControl "5400+30"]
[WhiteFideId "22105239"]
[BlackFideId "13316460"]
[WhiteElo "1842"]
[BlackElo "2057"]
[BlackTitle "WFM"]
[WhiteClock "0:49:44"]
[BlackClock "0:50:23"]
[Variant "Standard"]

1. e4 {[%clk 1:30:56]}  c5 {[%clk 1:30:55]} 2. Nc3 {[%clk 1:31:22]}  Nc6 {[%clk 1:31:21]} 3. f4 {[%clk 1:31:47]}  g6 {[%clk 1:31:42]}
4. Nf3 {[%clk 1:32:12]}  Bg7 {[%clk 1:31:53]} 5. Bb5 {[%clk 1:31:52]}  Nd4 {[%clk 1:32:08]} 6. O-O {[%clk 1:32:04]}  a6 {[%clk 1:32:19]}
7. Bc4 {[%clk 1:32:12]}  b5 {[%clk 1:32:28]} 8. Bd5 {[%clk 1:31:31]}  Ra7 {[%clk 1:32:30]} 9. d3 {[%clk 1:29:45]}  e6 {[%clk 1:31:55]}
10. Bb3 {[%clk 1:30:08]}  d5 {[%clk 1:29:39]} 11. exd5 {[%clk 1:24:53]}  exd5 {[%clk 1:29:53]} 12. Bxd5 {[%clk 1:18:26]}  b4 {[%clk 1:29:26]}
13. Re1+ {[%clk 1:15:09]}  Kf8 {[%clk 1:23:44]} 14. Bxf7 {[%clk 1:07:54]}  Rxf7 {[%clk 1:22:29]} 15. Ne4 {[%clk 1:06:34]}  Bg4 {[%clk 1:12:13]}
16. Neg5 {[%clk 1:03:41]}  Re7 {[%clk 1:11:27]} 17. Rxe7 {[%clk 1:02:34]}  Qxe7 {[%clk 1:07:47]} 18. a3 {[%clk 0:59:53]}  Nxf3+ {[%clk 1:02:10]}
19. gxf3 {[%clk 1:00:04]}  Bd4+ {[%clk 1:01:46]} 20. Kf1 {[%clk 0:59:19]}  h6 {[%clk 0:57:25]} 21. Ne4 {[%clk 0:56:50]}  Bh3+ {[%clk 0:57:31]}
22. Ke2 {[%clk 0:57:13]}  Nf6 {[%clk 0:56:30]} 23. axb4 {[%clk 0:57:00]}  Nxe4 {[%clk 0:54:41]} 24. dxe4 {[%clk 0:57:15]}  Be6 {[%clk 0:54:17]}
25. c3 {[%clk 0:53:58]}  Bc4+ {[%clk 0:51:11]} 26. Kd2 {[%clk 0:52:34]}  Bf2 {[%clk 0:50:38]} 27. Kc2 {[%clk 0:50:47]}  Kg7 {[%clk 0:49:56]}
28. b3 {[%clk 0:50:10]}  Rd8 {[%clk 0:49:26]} 29. Qh1 {[%clk 0:49:41]}  Bd3+ {[%clk 0:49:31]} 30. Kb2 {[%clk 0:49:50]}  cxb4 {[%clk 0:49:51]}
31. Bd2 {[%clk 0:49:05]}  Be2 {[%clk 0:49:58]} 32. Qc1 {[%clk 0:49:00]}  Qd6 {[%clk 0:48:37]} 33. Be3 {[%clk 0:48:54]}  Bxe3 {[%clk 0:49:02]}
34. Qxe3 {[%clk 0:49:16]}  Qd2+ {[%clk 0:49:30]} 35. Qxd2 {[%clk 0:49:35]}  Rxd2+ {[%clk 0:49:58]} 36. Kc1 {[%clk 0:49:44]}  Rd1+ {[%clk 0:50:23]} 0-1